Workbook

Sheet タイミング線図
A1: ストローク | B1: 10 | D1: 0 | E1: 0
A2: 下端時間 | B2: 5 | D2: =$B$2 -> 5 | E2: 0
A3: 上昇時間 | B3: 2 | D3: =D2+$B$3 -> 7 | E3: =$B$1 -> 10
A4: 上端時間 | B4: 5 | D4: =D3+$B$4 -> 12 | E4: =$B$1 -> 10
A5: 降下時間 | B5: =B3 -> 2 | D5: =D4+$B$5 -> 14 | E5: 0
A6: 回転速度[r/m] | B6: =60/(B2+B3+B4+B5) -> 4.285714286

Sheet カム作図
A1: -64.28571429 | B1: 28.96185996 | C1: =B1*SIN(RADIANS(A1)) -> -26.09373418 | D1: =B1*COS(RADIANS(A1)) -> 12.56608009 | F1: X座標シフト | G1: 37 | I1: カム形状ファイル名 | J1: CAM_curve
A2: -63.28571429 | B2: 28.96185996 | C2: =B2*SIN(RADIANS(A2)) -> -25.87045164 | D2: =B2*COS(RADIANS(A2)) -> 13.01956467
A3: -62.28571429 | B3: 28.96185996 | C3: -25.63928871 | D3: 13.46908336
A4: -61.28571429 | B4: 28.96185996 | C4: -25.40031581 | D4: 13.91449924
A5: -60.28571429 | B5: 28.96185996 | C5: -25.15360572 | D5: 14.35567663
A6: -59.28571429 | B6: 28.96185996 | C6: -24.8992336 | D6: 14.79248115
A7: -58.28571429 | B7: 28.96185996 | C7: -24.63727693 | D7: 15.22477972
A8: -57.28571429 | B8: 28.96185996 | C8: -24.36781551 | D8: 15.65244069
A9: -56.28571429 | B9: 28.96185996 | C9: -24.09093142 | D9: 16.07533376
A10: -55.28571429 | B10: 28.96185996 | C10: -23.80670899 | D10: 16.49333014
A11: -54.28571429 | B11: 28.96185996 | C11: -23.51523482 | D11: 16.90630249
A12: -53.28571429 | B12: 28.96185996 | C12: -23.21659767 | D12: 17.31412501
A13: -52.28571429 | B13: 28.96185996 | C13: -22.91088852 | D13: 17.71667348
A14: -51.28571429 | B14: 28.96185996 | C14: -22.5982005 | D14: 18.11382529
A15: -50.28571429 | B15: 28.96185996 | C15: -22.27862884 | D15: 18.50545944
A16: -49.28571429 | B16: 28.96185996 | C16: -21.9522709 | D16: 18.89145666
A17: -48.28571429 | B17: 28.96185996 | C17: -21.61922608 | D17: 19.27169935
A18: -47.28571429 | B18: 28.96185996 | C18: -21.27959584 | D18: 19.6460717
A19: -46.28571429 | B19: 28.96185996 | C19: -20.93348362 | D19: 20.01445966
A20: -45.28571429 | B20: 28.96185996 | C20: -20.58099487 | D20: 20.37675103
A21: -44.28571429 | B21: 28.96185996 | C21: -20.22223694 | D21: 20.73283544
A22: -43.28571429 | B22: 28.96185996 | C22: -19.85731913 | D22: 21.08260442
A23: -42.28571429 | B23: 28.96185996 | C23: -19.48635258 | D23: 21.42595145
A24: -41.28571429 | B24: 28.96185996 | C24: -19.1094503 | D24: 21.76277191
A25: -40.28571429 | B25: 28.96185996 | C25: -18.7267271 | D25: 22.09296323
A26: -39.28571429 | B26: 28.96185996 | C26: -18.33829955 | D26: 22.41642482
A27: -38.28571429 | B27: 28.96185996 | C27: -17.94428599 | D27: 22.73305815
A28: -37.28571429 | B28: 28.96185996 | C28: -17.54480641 | D28: 23.04276676
A29: -36.28571429 | B29: 28.96185996 | C29: -17.13998252 | D29: 23.34545633
A30: -35.28571429 | B30: 28.96185996 | C30: -16.72993763 | D30: 23.64103465
A31: -34.28571429 | B31: 28.96185996 | C31: -16.31479663 | D31: 23.92941167
A32: -33.28571429 | B32: 28.96185996 | C32: -15.89468599 | D32: 24.21049957
A33: -32.28571429 | B33: 28.96185996 | C33: -15.46973368 | D33: 24.48421271
A34: -31.28571429 | B34: 28.96185996 | C34: -15.04006913 | D34: 24.75046773
A35: -30.28571429 | B35: 28.96185996 | C35: -14.60582323 | D35: 25.00918351
A36: -29.28571429 | B36: 28.96185996 | C36: -14.16712826 | D36: 25.26028126
A37: -28.28571429 | B37: 28.96185996 | C37: -13.72411784 | D37: 25.50368447
A38: -27.28571429 | B38: 28.96185996 | C38: -13.27692692 | D38: 25.73931902
A39: -26.28571429 | B39: 28.96185996 | C39: -12.82569173 | D39: 25.96711312
A40: -25.28571429 | B40: 28.96185996 | C40: -12.3705497 | D40: 26.18699739
A41: -24.28571429 | B41: 28.96185996 | C41: -11.91163948 | D41: 26.39890485
A42: -23.28571429 | B42: 28.96185996 | C42: -11.44910087 | D42: 26.60277094
A43: -22.28571429 | B43: 28.96185996 | C43: -10.98307474 | D43: 26.79853357
A44: -21.28571429 | B44: 28.96185996 | C44: -10.51370307 | D44: 26.98613311
A45: -20.28571429 | B45: 28.96185996 | C45: -10.04112882 | D45: 27.16551241
A46: -19.28571429 | B46: 28.96185996 | C46: -9.565495939 | D46: 27.33661683
A47: -18.28571429 | B47: 28.96185996 | C47: -9.086949321 | D47: 27.49939425
A48: -17.28571429 | B48: 28.96185996 | C48: -8.605634729 | D48: 27.65379509
A49: -16.28571429 | B49: 28.96185996 | C49: -8.121698777 | D49: 27.79977232
A50: -15.28571429 | B50: 28.96185996 | C50: -7.635288878 | D50: 27.93728147
A51: -14.28571429 | B51: 28.96185996 | C51: -7.146553196 | D51: 28.06628065
A52: -13.28571429 | B52: 28.96185996 | C52: -6.655640604 | D52: 28.18673057
A53: -12.28571429 | B53: 28.96185996 | C53: -6.162700639 | D53: 28.29859454
A54: -11.28571429 | B54: 28.96185996 | C54: -5.667883457 | D54: 28.40183849
A55: -10.28571429 | B55: 28.96185996 | C55: -5.171339782 | D55: 28.49643095
A56: -9.285714286 | B56: 28.96185996 | C56: -4.673220867 | D56: 28.58234313
A57: -8.285714286 | B57: 28.96185996 | C57: -4.173678443 | D57: 28.65954885
A58: -7.285714286 | B58: 28.96185996 | C58: -3.672864677 | D58: 28.7280246
A59: -6.285714286 | B59: 28.96185996 | C59: -3.17093212 | D59: 28.78774951
A60: -5.285714286 | B60: 28.96185996 | C60: -2.668033667 | D60: 28.83870539
A61: -4.285714286 | B61: 28.96185996 | C61: -2.164322505 | D61: 28.88087672
A62: -3.285714286 | B62: 28.96185996 | C62: -1.659952069 | D62: 28.91425066
A63: -2.285714286 | B63: 28.96185996 | C63: -1.155075996 | D63: 28.93881704
A64: -1.285714286 | B64: 28.96185996 | C64: -0.6498480759 | D64: 28.95456837
A65: -0.2857142857 | B65: 28.96185996 | C65: -0.1444222054 | D65: 28.96149987
A66: 0.7142857143 | B66: 28.96185996 | C66: =B66*SIN(RADIANS(A66)) -> 0.3610476575 | D66: =B66*COS(RADIANS(A66)) -> 28.9596094
A67: 1.714285714 | B67: 28.96185996 | C67: 0.8664075418 | D67: 28.94889756
A68: 2.714285714 | B68: 28.96185996 | C68: 1.37150351 | D68: 28.92936761
A69: 3.714285714 | B69: 28.96185996 | C69: 1.876181705 | D69: 28.90102549
A70: 4.714285714 | B70: 28.96185996 | C70: 2.380288397 | D70: 28.86387984
A71: 5.714285714 | B71: 28.96185996 | C71: 2.883670029 | D71: 28.81794197
A72: 6.714285714 | B72: 28.96185996 | C72: 3.386173268 | D72: 28.76322588
A73: 7.714285714 | B73: 28.96185996 | C73: 3.887645046 | D73: 28.69974823
A74: 8.714285714 | B74: 28.96185996 | C74: 4.38793261 | D74: 28.62752835
A75: 9.714285714 | B75: 28.96185996 | C75: 4.886883567 | D75: 28.54658826
A76: 10.71428571 | B76: 28.96185996 | C76: 5.384345931 | D76: 28.4569526
A77: 11.71428571 | B77: 28.96185996 | C77: 5.880168172 | D77: 28.35864867
A78: 12.71428571 | B78: 28.96185996 | C78: 6.374199256 | D78: 28.25170643
A79: 13.71428571 | B79: 28.96185996 | C79: 6.866288698 | D79: 28.13615844
A80: 14.71428571 | B80: 28.96185996 | C80: 7.356286602 | D80: 28.01203991
A81: 15.71428571 | B81: 28.96185996 | C81: 7.844043709 | D81: 27.87938863
A82: 16.71428571 | B82: 28.96185996 | C82: 8.329411445 | D82: 27.73824503
A83: 17.71428571 | B83: 28.96185996 | C83: 8.812241961 | D83: 27.58865208
A84: 18.71428571 | B84: 28.96185996 | C84: 9.292388184 | D84: 27.43065537
A85: 19.71428571 | B85: 28.96185996 | C85: 9.769703854 | D85: 27.26430301
A86: 20.71428571 | B86: 28.96185996 | C86: 10.24404358 | D86: 27.08964569
A87: 21.71428571 | B87: 28.96185996 | C87: 10.71526287 | D87: 26.90673659
A88: 22.71428571 | B88: 28.96185996 | C88: 11.18321818 | D88: 26.71563144
A89: 23.71428571 | B89: 28.96185996 | C89: 11.64776698 | D89: 26.51638845
A90: 24.71428571 | B90: 28.96185996 | C90: 12.10876776 | D90: 26.30906831
A91: 25.71428571 | B91: 28.96185996 | C91: 12.56608009 | D91: 26.09373418
A92: 26.71428571 | B92: 28.96185996 | C92: 13.01956467 | D92: 25.87045164
A93: 27.71428571 | B93: 28.96185996 | C93: 13.46908336 | D93: 25.63928871
A94: 28.71428571 | B94: 28.96185996 | C94: 13.91449924 | D94: 25.40031581
A95: 29.71428571 | B95: 28.96185996 | C95: 14.35567663 | D95: 25.15360572
A96: 30.71428571 | B96: 28.96185996 | C96: 14.79248115 | D96: 24.8992336
A97: 31.71428571 | B97: 28.96185996 | C97: 15.22477972 | D97: 24.63727693
A98: 32.71428571 | B98: 28.96185996 | C98: 15.65244069 | D98: 24.36781551
A99: 33.71428571 | B99: 28.96185996 | C99: 16.07533376 | D99: 24.09093142
A100: 34.71428571 | B100: 28.96185996 | C100: 16.49333014 | D100: 23.80670899
A101: 35.71428571 | B101: 28.96185996 | C101: 16.90630249 | D101: 23.51523482
A102: 36.71428571 | B102: 28.96185996 | C102: 17.31412501 | D102: 23.21659767
A103: 37.71428571 | B103: 28.96185996 | C103: 17.71667348 | D103: 22.91088852
A104: 38.71428571 | B104: 28.96185996 | C104: 18.11382529 | D104: 22.5982005
A105: 39.71428571 | B105: 28.96185996 | C105: 18.50545944 | D105: 22.27862884
A106: 40.71428571 | B106: 28.96185996 | C106: 18.89145666 | D106: 21.9522709
A107: 41.71428571 | B107: 28.96185996 | C107: 19.27169935 | D107: 21.61922608
A108: 42.71428571 | B108: 28.96185996 | C108: 19.6460717 | D108: 21.27959584
A109: 43.71428571 | B109: 28.96185996 | C109: 20.01445966 | D109: 20.93348362
A110: 44.71428571 | B110: 28.96185996 | C110: 20.37675103 | D110: 20.58099487
A111: 45.71428571 | B111: 28.96185996 | C111: 20.73283544 | D111: 20.22223694
A112: 46.71428571 | B112: 28.96185996 | C112: 21.08260442 | D112: 19.85731913
A113: 47.71428571 | B113: 28.96185996 | C113: 21.42595145 | D113: 19.48635258
A114: 48.71428571 | B114: 28.96185996 | C114: 21.76277191 | D114: 19.1094503
A115: 49.71428571 | B115: 28.96185996 | C115: 22.09296323 | D115: 18.7267271
A116: 50.71428571 | B116: 28.96185996 | C116: 22.41642482 | D116: 18.33829955
A117: 51.71428571 | B117: 28.96185996 | C117: 22.73305815 | D117: 17.94428599
A118: 52.71428571 | B118: 28.96185996 | C118: 23.04276676 | D118: 17.54480641
A119: 53.71428571 | B119: 28.96185996 | C119: 23.34545633 | D119: 17.13998252
A120: 54.71428571 | B120: 28.96185996 | C120: 23.64103465 | D120: 16.72993763
A121: 55.71428571 | B121: 28.96185996 | C121: 23.92941167 | D121: 16.31479663
A122: 56.71428571 | B122: 28.96185996 | C122: 24.21049957 | D122: 15.89468599
A123: 57.71428571 | B123: 28.96185996 | C123: 24.48421271 | D123: 15.46973368
A124: 58.71428571 | B124: 28.96185996 | C124: 24.75046773 | D124: 15.04006913
A125: 59.71428571 | B125: 28.96185996 | C125: 25.00918351 | D125: 14.60582323
A126: 60.71428571 | B126: 28.96185996 | C126: 25.26028126 | D126: 14.16712826
A127: 61.71428571 | B127: 28.96185996 | C127: 25.50368447 | D127: 13.72411784
A128: 62.71428571 | B128: 28.96185996 | C128: 25.73931902 | D128: 13.27692692
A129: 63.71428571 | B129: 28.96185996 | C129: 25.96711312 | D129: 12.82569173
A130: 64.71428571 | B130: 28.96192692 | C130: =B130*SIN(RADIANS(A130)) -> 26.18705794 | D130: =B130*COS(RADIANS(A130)) -> 12.3705783
A131: 65.71428571 | B131: 28.96432639 | C131: 26.40115301 | D131: 11.9126539
A132: 66.71428571 | B132: 28.97383874 | C132: 26.61377399 | D132: 11.45383628
A133: 67.71428571 | B133: 28.99498045 | C133: 26.8291801 | D133: 10.99563487
A134: 68.71428571 | B134: 29.03157709 | C134: 27.05109426 | D134: 10.5390117
A135: 69.71428571 | B135: 29.08653611 | C135: 27.28245557 | D135: 10.08435426
A136: 70.71428571 | B136: 29.16167405 | C136: 27.52521802 | D136: 9.631490349
A137: 71.71428571 | B137: 29.25765477 | C137: 27.78025253 | D137: 9.179756636
A138: 72.71428571 | B138: 29.37445515 | C138: 28.04775539 | D138: 8.72823195
A139: 73.71428571 | B139: 29.5118679 | C139: 28.32771133 | D139: 8.275936069
A140: 74.71428571 | B140: 29.66954906 | C140: 28.61993479 | D140: 7.821858758
A141: 75.71428571 | B141: 29.8470203 | C141: 28.92406944 | D141: 7.364973058
A142: 76.71428571 | B142: 30.04367207 | C142: 29.23958928 | D142: 6.904248691
A143: 77.71428571 | B143: 30.25876764 | C143: 29.5658013 | D143: 6.438665436
A144: 78.71428571 | B144: 30.49144801 | C144: 29.90184963 | D144: 5.967226345
A145: 79.71428571 | B145: 30.74073758 | C145: 30.24672128 | D145: 5.488970647
A146: 80.71428571 | B146: 31.00555064 | C146: 30.59925325 | D146: 5.002986218
A147: 81.71428571 | B147: 31.28469853 | C147: 30.95814106 | D147: 4.508421491
A148: 82.71428571 | B148: 31.57689756 | C148: 31.32194863 | D148: 4.004496667
A149: 83.71428571 | B149: 31.88077753 | C149: 31.68911937 | D149: 3.490514132
A150: 84.71428571 | B150: 32.19489075 | C150: 32.05798836 | D150: 2.965867957
A151: 85.71428571 | B151: 32.51772171 | C151: 32.42679556 | D151: 2.430052387
A152: 86.71428571 | B152: 32.8476971 | C152: 32.79370002 | D152: 1.882669237
A153: 87.71428571 | B153: 33.18319623 | C153: 33.15679469 | D153: 1.323434113
A154: 88.71428571 | B154: 33.52256179 | C154: 33.51412198 | D154: 0.7521813967
A155: 89.71428571 | B155: 33.86411083 | C155: 33.86368979 | D155: 0.1688679379
A156: 90.71428571 | B156: 34.20614594 | C156: 34.20348786 | D156: -0.4264245764
A157: 91.71428571 | B157: 34.54696646 | C157: 34.53150436 | D157: -1.033488607
A158: 92.71428571 | B158: 34.88487982 | C158: 34.84574242 | D158: -1.651991108
A159: 93.71428571 | B159: 35.21821268 | C159: 35.14423672 | D159: -2.281475237
A160: 94.71428571 | B160: 35.5453221 | C160: 35.42506964 | D160: -2.921363403
A161: 95.71428571 | B161: 35.86460641 | C161: 35.68638712 | D161: -3.570961629
A162: 96.71428571 | B162: 36.17451579 | C162: 35.92641391 | D162: -4.229465184
A163: 97.71428571 | B163: 36.4735626 | C163: 36.14346817 | D163: -4.895965424
A164: 98.71428571 | B164: 36.76033123 | C164: 36.33597518 | D164: -5.569457776
A165: 99.71428571 | B165: 37.03348745 | C165: 36.50248014 | D165: -6.248850781
A166: 100.7142857 | B166: 37.2917873 | C166: 36.64165993 | D166: -6.932976112
A167: 101.7142857 | B167: 37.53408533 | C167: 36.75233361 | D167: -7.620599445
A168: 102.7142857 | B168: 37.75934216 | C168: 36.83347172 | D168: -8.310432102
A169: 103.7142857 | B169: 37.96663142 | C169: 36.88420421 | D169: -9.001143318
A170: 104.7142857 | B170: 38.15514586 | C170: 36.90382696 | D170: -9.691373022
A171: 105.7142857 | B171: 38.3242027 | C171: 36.89180677 | D171: -10.379745
A172: 106.7142857 | B172: 38.4732482 | C172: 36.84778489 | D172: -11.06488031
A173: 107.7142857 | B173: 38.60186127 | C173: 36.77157896 | D173: -11.74541076
A174: 108.7142857 | B174: 38.7097563 | C174: 36.66318344 | D174: -12.41999245
A175: 109.7142857 | B175: 38.7967866 | C175: 36.52276985 | D175: -13.08731953
A176: 110.7142857 | B176: 38.86312923 | C176: 36.35085601 | D176: -13.74620242
A177: 111.7142857 | B177: 38.90992938 | C177: 36.14889452 | D177: -14.39583377
A178: 112.7142857 | B178: 38.93948831 | C178: 35.91941331 | D178: -15.03594018
A179: 113.7142857 | B179: 38.95513155 | C179: 35.66585163 | D179: -15.66682167
A180: 114.7142857 | B180: 38.96101134 | C180: 35.39233704 | D180: -16.28934878
A181: 115.7142857 | B181: 38.96185996 | C181: 35.10342286 | D181: -16.90491748
A182: 116.7142857 | B182: 38.96185996 | C182: 34.80304495 | D182: -17.51498198
A183: 117.7142857 | B183: 38.96185996 | C183: 34.49206569 | D183: -18.11971125
A184: 118.7142857 | B184: 38.96185996 | C184: 34.17057982 | D184: -18.71892108
A185: 119.7142857 | B185: 38.96185996 | C185: 33.83868525 | D185: -19.31242895
A186: 120.7142857 | B186: 38.96185996 | C186: 33.4964831 | D186: -19.90005406
A187: 121.7142857 | B187: 38.96185996 | C187: 33.14407759 | D187: -20.48161742
A188: 122.7142857 | B188: 38.96185996 | C188: 32.78157607 | D188: -21.05694189
A189: 123.7142857 | B189: 38.96185996 | C189: 32.40908897 | D189: -21.6258522
A190: 124.7142857 | B190: 38.96185996 | C190: 32.02672975 | D190: -22.18817507
A191: 125.7142857 | B191: 38.96185996 | C191: 31.63461487 | D191: -22.74373921
A192: 126.7142857 | B192: 38.96185996 | C192: 31.23286379 | D192: -23.29237538
A193: 127.7142857 | B193: 38.96185996 | C193: 30.82159887 | D193: -23.83391648
A194: 128.7142857 | B194: 38.96185996 | C194: =B194*SIN(RADIANS(A194)) -> 30.40094539 | D194: =B194*COS(RADIANS(A194)) -> -24.36819752
A195: 129.7142857 | B195: 38.96185996 | C195: 29.97103149 | D195: -24.89505579
A196: 130.7142857 | B196: 38.96185996 | C196: 29.53198813 | D196: -25.41433077
A197: 131.7142857 | B197: 38.96185996 | C197: 29.08394903 | D197: -25.9258643
A198: 132.7142857 | B198: 38.96185996 | C198: 28.62705069 | D198: -26.42950057
A199: 133.7142857 | B199: 38.96185996 | C199: 28.16143226 | D199: -26.92508615
A200: 134.7142857 | B200: 38.96185996 | C200: 27.68723559 | D200: -27.41247009
... 161 more rows
